fUST/lending_fUST_20251010
["ID","MTS","AMOUNT","RATE_DAILY","PERIOD"]
[390478715,1760058648027,-500.0,0.0001726,2]
[390478717,1760058648036,-1191.61,0.0001726,2]
[390478719,1760058648044,-500.0,0.0001726,2]
[390478720,1760058648054,-500.0,0.0001726,2]
[390478722,1760058648063,-500.0,0.0001726,2]
[390478724,1760058648072,-500.0,0.0001726,2]
[390478726,1760058648082,-2350.97,0.0001726,2]
[390478728,1760058648091,-500.0,0.0001726,2]
[390478729,1760058648101,-1344.99,0.0001726,2]
[390478731,1760058648110,-513.70421767,0.00017264,2]
[390478733,1760058648119,-340.78618959,0.00017264,2]
[390478735,1760058648129,-190.199792,0.00017265,2]
[390478737,1760058648138,-18603.8837,0.00017265,2]
[390478738,1760058648147,-151.0,0.00017265,2]
[390478740,1760058648157,-162.380719,0.00017265,2]
[390478742,1760058648166,-151.0,0.00017265,2]
[390478744,1760058648175,-151.0,0.00017265,2]
[390478746,1760058648184,-500.0,0.00017265,2]
[390478747,1760058648194,-151.0,0.00017265,2]
[390478749,1760058648203,-500.0,0.00017265,2]
[390478751,1760058648212,-500.0,0.00017265,2]
[390478753,1760058648221,-151.0,0.00017265,2]
[390478755,1760058648231,-500.0,0.00017265,2]
[390478756,1760058648240,-605.36418013,0.00017265,2]
[390478758,1760058648249,-151.0,0.00017265,2]
[390478760,1760058648258,-151.0,0.00017265,2]
[390478762,1760058648268,-151.0,0.00017265,2]
[390478764,1760058648279,-151.0,0.00017265,2]
[390478765,1760058648288,-151.0,0.00017265,2]
[390478767,1760058648298,-162.380719,0.00017265,2]
[390478769,1760058648308,-151.0,0.00017265,2]
[390478771,1760058648317,-500.0,0.00017265,2]
[390478773,1760058648327,-1000.0,0.00017265,2]
[390478775,1760058648336,-1000.0,0.00017265,2]
[390478776,1760058648345,-500.0,0.00017265,2]
[390478778,1760058648355,-151.0,0.00017265,2]
[390478780,1760058648365,-1000.0,0.00017265,2]
[390478782,1760058648374,-469.87223962,0.00017265,2]
[390478784,1760058648384,-151.0,0.00017265,2]
[390478785,1760058648393,-1000.0,0.00017265,2]
[390478787,1760058648402,-151.0,0.00017265,2]
[390478789,1760058648411,-151.0,0.00017265,2]
[390478791,1760058648421,-151.0,0.00017265,2]
[390478792,1760058648430,-211.20668251,0.00017265,2]
[390478794,1760058648439,-151.0,0.00017265,2]
[390478796,1760058648448,-151.0,0.00017265,2]
[390478798,1760058648457,-151.0,0.00017265,2]
[390478800,1760058648466,-151.0,0.00017265,2]
[390478801,1760058648476,-250.0,0.00017265,2]
[390478803,1760058648485,-151.0,0.00017265,2]
[390478805,1760058648495,-250.0,0.00017265,2]
[390478807,1760058648505,-151.0,0.00017265,2]
[390478809,1760058648515,-151.0,0.00017265,2]
[390478811,1760058648524,-250.0,0.00017265,2]
[390478812,1760058648533,-500.0,0.00017265,2]
[390478814,1760058648542,-500.0,0.00017265,2]
[390478816,1760058648552,-500.0,0.00017265,2]
[390478818,1760058648561,-500.0,0.00017265,2]
[390478820,1760058648570,-500.0,0.00017265,2]
[390478821,1760058648581,-151.0,0.00017265,2]
[390478823,1760058648591,-151.0,0.00017265,2]
[390478825,1760058648600,-157.766017,0.00017265,2]
[390478827,1760058648611,-192.154342,0.00017265,2]
[390478829,1760058648623,-192.154342,0.00017265,2]
[390478831,1760058648633,-192.154342,0.00017265,2]
[390478833,1760058648642,-192.154342,0.00017265,2]
[390478835,1760058648652,-210.450322,0.00017265,2]
[390478837,1760058648663,-210.450322,0.00017265,2]
[390478839,1760058648672,-210.450322,0.00017265,2]
[390478841,1760058648681,-151.0,0.00017265,2]
[390478843,1760058648690,-210.450322,0.00017265,2]
[390478845,1760058648699,-151.0,0.00017265,2]
[390478847,1760058648708,-288.782122,0.00017265,2]
[390478849,1760058648718,-151.0,0.00017265,2]
[390478851,1760058648728,-151.0,0.00017265,2]
[390478853,1760058648737,-151.0,0.00017265,2]
[390478855,1760058648746,-151.0,0.00017265,2]
[390478857,1760058648755,-151.0,0.00017265,2]
[390478859,1760058648765,-151.0,0.00017265,2]
[390478861,1760058648776,-151.0,0.00017265,2]
[390478863,1760058648785,-151.0,0.00017265,2]
[390478865,1760058648795,-151.0,0.00017265,2]
[390478867,1760058648804,-151.0,0.00017265,2]
[390478869,1760058648814,-180.41845,0.00017265,2]
[390478871,1760058648824,-151.0,0.00017265,2]
[390478873,1760058648833,-151.0,0.00017265,2]
[390478876,1760058648844,-500.0,0.00017273,2]
[390478878,1760058648853,-214.18640301,0.00017273,2]
[390478880,1760058648863,-500.0,0.00017273,2]
[390478882,1760058648872,-165.21529698,0.00017273,2]
[390478883,1760058648882,-500.0,0.00017273,2]
[390478884,1760058648891,-642.46180802,0.0001728,2]
[390478885,1760058648900,-1000.0,0.00017321,2]
[390478886,1760058648909,-858.66931628,0.00017321,2]
[390478887,1760058648923,-1000.0,0.00017321,2]
[390478888,1760058648932,-681.93753704,0.00017321,2]
[390478889,1760058648941,-1000.0,0.00017321,2]
[390478890,1760058648950,-1000.0,0.00017321,2]
[390478891,1760058648960,-1000.0,0.00017321,2]
[390478892,1760058648969,-1000.0,0.00017321,2]
[390478893,1760058648978,-500.0,0.00017321,2]
[390478894,1760058648987,-416.61937395,0.00017321,2]
[390478895,1760058648997,-1000.0,0.00017321,2]
[390478896,1760058649006,-1000.0,0.00017321,2]
[390478897,1760058649016,-1000.0,0.00017321,2]
[390478898,1760058649025,-500.0,0.00017321,2]
[390478899,1760058649034,-1000.0,0.00017321,2]
[390478900,1760058649043,-284.02140231,0.00017321,2]
[390478901,1760058649052,-500.85193881,0.00017321,2]
[390478902,1760058649062,-160.0,0.00017364,2]
[390478903,1760058649071,-234.29301719,0.00017364,2]
[390478904,1760058649080,-402.15066402,0.00017364,2]
[390478905,1760058649090,-160.0,0.00017364,2]
[390478906,1760058649099,-160.0,0.00017364,2]
[390478907,1760058649108,-417.15472785,0.00017364,2]
[390478908,1760058649117,-160.0,0.00017364,2]
[390478909,1760058649126,-390.37501908,0.000174,2]
[390478910,1760058649135,-390.37501908,0.000175,2]
[390478911,1760058649145,-8539.68,0.00017533,2]
[390478912,1760058649154,-8539.68,0.00017533,2]
[390478913,1760058649163,-8539.68,0.00017533,2]
[390478914,1760058649172,-219.59985086,0.00017534,2]
[390478915,1760058649181,-1519.0,0.00017534,2]
[390478916,1760058649190,-500.0,0.00017534,2]
[390478917,1760058649199,-500.0,0.00017534,2]
[390478918,1760058649208,-500.0,0.00017534,2]
[390478919,1760058649217,-500.0,0.00017534,2]
[390478920,1760058649226,-908.65,0.00017534,2]
[390478921,1760058649235,-539.86,0.00017534,2]
[390478922,1760058649244,-500.0,0.00017534,2]
[390478923,1760058649253,-554.35,0.00017534,2]
[390478924,1760058649262,-1127.32,0.00017534,2]
[390478925,1760058649271,-836.06,0.00017534,2]
[390478926,1760058649281,-643.27,0.00017534,2]
[390478927,1760058649290,-500.0,0.00017534,2]
[390478928,1760058649299,-644.56,0.00017534,2]
[390478929,1760058649308,-500.0,0.00017534,2]
[390478930,1760058649317,-500.0,0.00017534,2]
[390478932,1760058649326,-500.0,0.00017534,2]
[390478933,1760058649335,-151.0,0.00017534,2]
[390478934,1760058649345,-500.0,0.00017534,2]
[390478936,1760058649354,-500.0,0.00017534,2]
[390478937,1760058649363,-151.0,0.00017534,2]
[390478938,1760058649372,-151.0,0.00017534,2]
[390478940,1760058649382,-151.0,0.00017534,2]
[390478941,1760058649391,-151.0,0.00017534,2]
[390478943,1760058649400,-500.0,0.00017534,2]
[390478944,1760058649409,-727.24,0.00017534,2]
[390478946,1760058649418,-2335.45,0.00017534,2]
[390478948,1760058649428,-617.81,0.00017534,2]
[390478950,1760058649437,-500.0,0.00017534,2]
[390478952,1760058649447,-4506.29,0.00017534,2]
[390478954,1760058649456,-3706.89,0.00017534,2]
[390478956,1760058649465,-500.0,0.00017534,2]
[390478958,1760058649475,-1269.01,0.00017534,2]
[390478960,1760058649484,-500.0,0.00017534,2]
[390478962,1760058649493,-500.0,0.00017534,2]
[390478964,1760058649503,-500.0,0.00017534,2]
[390478966,1760058649512,-500.0,0.00017534,2]
[390478968,1760058649521,-500.0,0.00017534,2]
[390478970,1760058649531,-500.0,0.00017534,2]
[390478972,1760058649540,-500.0,0.00017534,2]
[390478974,1760058649549,-684.43,0.00017534,2]
[390478976,1760058649559,-3739.76,0.00017534,2]
[390478978,1760058649568,-1231.2,0.00017534,2]
[390478980,1760058649577,-500.0,0.00017534,2]
[390478982,1760058649586,-627.64,0.00017534,2]
[390478984,1760058649595,-3272.57,0.00017534,2]
[390478986,1760058649605,-500.0,0.00017534,2]
[390478988,1760058649614,-500.0,0.00017534,2]
[390478990,1760058649623,-3185.5,0.00017534,2]
[390478992,1760058649632,-1796.42,0.00017534,2]
[390478994,1760058649641,-830.41,0.00017534,2]
[390478996,1760058649650,-500.0,0.00017534,2]
[390478998,1760058649659,-500.0,0.00017534,2]
[390479000,1760058649669,-500.0,0.00017534,2]
[390479002,1760058649678,-1137.25,0.00017534,2]
[390479004,1760058649687,-500.0,0.00017534,2]
[390479006,1760058649697,-500.0,0.00017534,2]
[390479008,1760058649706,-500.0,0.00017534,2]
[390479010,1760058649715,-500.0,0.00017534,2]
[390479013,1760058649725,-1349.39,0.00017534,2]
[390479015,1760058649736,-736.88,0.00017534,2]
[390479017,1760058649745,-1086.11,0.00017534,2]
[390479019,1760058649755,-500.0,0.00017534,2]
[390479021,1760058649768,-151.0,0.00017534,2]
[390479022,1760058649777,-151.0,0.00017534,2]
[390479024,1760058649787,-510.3,0.00017534,2]
[390479026,1760058649797,-500.0,0.00017534,2]
[390479028,1760058649807,-527.19,0.00017534,2]
[390479030,1760058649816,-556.67,0.00017534,2]
[390479032,1760058649826,-500.0,0.00017534,2]
[390479034,1760058649836,-500.0,0.00017534,2]
[390479036,1760058649847,-500.0,0.00017534,2]
[390479038,1760058649856,-1323.81,0.00017534,2]
[390479040,1760058649866,-500.0,0.00017534,2]
[390479042,1760058649875,-500.0,0.00017534,2]
[390479044,1760058649884,-2160.82,0.00017534,2]
[390479046,1760058649894,-705.15,0.00017534,2]
[390479048,1760058649902,-500.0,0.00017534,2]
[390479050,1760058649911,-572.44,0.00017534,2]
[390479052,1760058649921,-1221.7,0.00017534,2]
[390479054,1760058649930,-500.0,0.00017534,2]
[390479056,1760058649940,-500.0,0.00017534,2]
[390479058,1760058649950,-1191.61,0.00017534,2]
[390479060,1760058649959,-500.0,0.00017534,2]
[390479062,1760058649968,-500.0,0.00017534,2]
[390479064,1760058649978,-501.32224252,0.00017534,2]
[390479066,1760058649988,-500.0,0.00017534,2]
[390479068,1760058649997,-2350.97,0.00017534,2]
[390479070,1760058650007,-642.69155727,0.00017534,2]
[390479072,1760058650017,-1344.99,0.00017534,2]
[390479074,1760058650031,-486.89330754,0.00017536,2]
[390479076,1760058650041,-151.0,0.00017555,2]
[390479078,1760058650050,-500.0,0.0001756,2]
[390479080,1760058650059,-500.0,0.0001756,2]
[390479082,1760058650068,-500.0,0.0001756,2]
[390479084,1760058650077,-500.0,0.0001756,2]
[390479086,1760058650086,-500.0,0.0001756,2]
[390479087,1760058650095,-500.0,0.0001756,2]
[390479103,1760058650224,-151.58172197,0.0001756,2]
[390479105,1760058650247,-299.201492,0.0001756,2]
[390479107,1760058650257,-151.0,0.0001756,2]
[390479109,1760058650266,-151.0,0.0001756,2]
[390479111,1760058650275,-151.0,0.0001756,2]
[390479113,1760058650284,-151.0,0.0001756,2]
[390479115,1760058650293,-980.0,0.00017589,2]
[390479117,1760058650302,-630.0,0.00017589,2]
[390479119,1760058650311,-2159.0,0.00017589,2]
[390479121,1760058650319,-411.0,0.00017589,2]
[390479123,1760058650328,-413.063,0.00017589,2]
[390479124,1760058650337,-4195.0,0.00017589,2]
[390479126,1760058650346,-150.0,0.00017675,2]
[390479128,1760058650355,-212.352,0.00017675,2]
[390479130,1760058650364,-187.186,0.00017675,2]
[390479132,1760058650373,-150.0,0.00017675,2]
[390479134,1760058650382,-150.0,0.00017675,2]
[390479136,1760058650392,-150.0,0.00017675,2]
[390479138,1760058650401,-150.064,0.00017675,2]
[390479140,1760058650410,-390.37501908,0.000177,2]
[390479142,1760058650419,-151.0,0.000177,2]
[390479144,1760058650427,-8539.68,0.00017707,2]
[390479146,1760058650436,-8539.68,0.00017707,2]
[390479148,1760058650445,-151.0,0.00017708,2]
[390479150,1760058650454,-151.0,0.00017708,2]
[390479152,1760058650463,-151.0,0.00017708,2]
[390479154,1760058650471,-151.0,0.00017708,2]
[390479155,1760058650481,-8539.68,0.00017807,2]
[390479157,1760058650489,-8539.68,0.00017807,2]
[390479159,1760058650498,-1519.0,0.00017808,2]
[390479161,1760058650509,-500.0,0.00017808,2]
[390479163,1760058650518,-500.0,0.00017808,2]
[390479165,1760058650526,-500.0,0.00017808,2]
[390479167,1760058650535,-908.65,0.00017808,2]
[390479169,1760058650544,-152.939898,0.00017808,2]
[390479171,1760058650553,-151.31009,0.00017808,2]
[390479173,1760058650562,-539.86,0.00017808,2]
[390479175,1760058650571,-500.0,0.00017808,2]
[390479177,1760058650579,-151.0,0.00017808,2]
[390479178,1760058650588,-192.154342,0.00017808,2]
[390479180,1760058650597,-192.154342,0.00017808,2]
[390479182,1760058650606,-192.154342,0.00017808,2]
[390479184,1760058650615,-192.154342,0.00017808,2]
[390479186,1760058650624,-210.450322,0.00017808,2]
[390479188,1760058650633,-210.450322,0.00017808,2]
[390479190,1760058650642,-210.450322,0.00017808,2]
[390479192,1760058650651,-210.450322,0.00017808,2]
[390479194,1760058650660,-554.35,0.00017808,2]
[390479196,1760058650668,-1127.32,0.00017808,2]
[390479198,1760058650677,-836.06,0.00017808,2]
[390479200,1760058650687,-643.27,0.00017808,2]
[390479202,1760058650695,-500.0,0.00017808,2]
[390479204,1760058650704,-644.56,0.00017808,2]
[390479206,1760058650713,-500.0,0.00017808,2]
[390479207,1760058650722,-500.0,0.00017808,2]
[390479209,1760058650731,-500.0,0.00017808,2]
[390479211,1760058650739,-279.19335585,0.00017808,2]
[390479213,1760058650748,-500.0,0.00017808,2]
[390479215,1760058650757,-151.0,0.00017808,2]
[390479217,1760058650768,-151.0,0.00017808,2]
[390479219,1760058650778,-151.0,0.00017808,2]
[390479221,1760058650787,-500.0,0.00017808,2]
[390479222,1760058650796,-727.24,0.00017808,2]
[390479224,1760058650806,-2335.45,0.00017808,2]
[390479226,1760058650815,-617.81,0.00017808,2]
[390479228,1760058650824,-500.0,0.00017808,2]
[390479230,1760058650833,-4506.29,0.00017808,2]
[390479232,1760058650843,-3706.89,0.00017808,2]
[390479234,1760058650852,-500.0,0.00017808,2]
[390479236,1760058650862,-1269.01,0.00017808,2]
[390479238,1760058650871,-500.0,0.00017808,2]
[390479240,1760058650880,-209.98258752,0.00017808,2]
[390479242,1760058650888,-151.0,0.00017808,2]
[390479244,1760058650898,-500.0,0.00017808,2]
[390479246,1760058650906,-500.0,0.00017808,2]
[390479248,1760058650915,-500.0,0.00017808,2]
[390479250,1760058650924,-151.0,0.00017808,2]
[390479252,1760058650935,-684.43,0.00017808,2]
[390479254,1760058650944,-3739.76,0.00017808,2]
[390479256,1760058650953,-1231.2,0.00017808,2]
[390479258,1760058650962,-500.0,0.00017808,2]
[390479260,1760058650971,-627.64,0.00017808,2]
[390479262,1760058650981,-3272.57,0.00017808,2]
[390479264,1760058650989,-500.0,0.00017808,2]
[390479266,1760058650999,-500.0,0.00017808,2]
[390479268,1760058651009,-3185.5,0.00017808,2]
[390479270,1760058651018,-1796.42,0.00017808,2]
[390479272,1760058651027,-830.41,0.00017808,2]
[390479273,1760058651036,-500.0,0.00017808,2]
[390479275,1760058651046,-500.0,0.00017808,2]
[390479277,1760058651055,-500.0,0.00017808,2]
[390479279,1760058651064,-1137.25,0.00017808,2]
[390479281,1760058651073,-500.0,0.00017808,2]
[390479283,1760058651082,-550.86256004,0.00017808,2]
[390479285,1760058651091,-244.416,0.00017808,2]
[390479287,1760058651100,-1349.39,0.00017808,2]
[390479289,1760058651109,-736.88,0.00017808,2]
[390479291,1760058651118,-1086.11,0.00017808,2]
[390479293,1760058651127,-500.0,0.00017808,2]
[390479295,1760058651135,-151.0,0.00017808,2]
[390479297,1760058651144,-151.0,0.00017808,2]
[390479299,1760058651154,-510.3,0.00017808,2]
[390479301,1760058651163,-500.0,0.00017808,2]
[390479303,1760058651172,-527.19,0.00017808,2]
[390479305,1760058651180,-556.67,0.00017808,2]
[390479307,1760058651189,-500.0,0.00017808,2]
[390479309,1760058651198,-500.0,0.00017808,2]
[390479311,1760058651206,-500.0,0.00017808,2]
[390479313,1760058651215,-1323.81,0.00017808,2]
[390479315,1760058651224,-500.0,0.00017808,2]
[390479317,1760058651232,-500.0,0.00017808,2]
[390479318,1760058651241,-2160.82,0.00017808,2]
[390479319,1760058651250,-705.15,0.00017808,2]
[390479320,1760058651259,-500.0,0.00017808,2]
[390479321,1760058651268,-572.44,0.00017808,2]
[390479322,1760058651277,-1221.7,0.00017808,2]
[390479323,1760058651286,-151.0,0.00017808,2]
[390479324,1760058651295,-500.0,0.00017808,2]
[390479325,1760058651304,-500.0,0.00017808,2]
[390479326,1760058651313,-151.0,0.00017808,2]
[390479327,1760058651321,-1191.61,0.00017808,2]
[390479328,1760058651330,-500.0,0.00017808,2]
[390479329,1760058651338,-151.0,0.00017808,2]
[390479330,1760058651347,-500.0,0.00017808,2]
[390479331,1760058651356,-500.0,0.00017808,2]
[390479332,1760058651365,-2350.97,0.00017808,2]
[390479333,1760058651374,-1344.99,0.00017808,2]
[390479334,1760058651384,-151.0,0.00017808,2]
[390479335,1760058651393,-151.0,0.00017808,2]
[390479336,1760058651402,-19292.2273969,0.00017813,2]
[390479337,1760058651411,-168.3888056,0.00017813,2]
[390479338,1760058651420,-500.0,0.00017821,2]
[390479339,1760058651429,-1000.0,0.00017821,2]
[390479340,1760058651438,-500.0,0.00017821,2]
[390479341,1760058651447,-8539.68,0.00017827,2]
[390479342,1760058651456,-8539.68,0.00017827,2]
[390479343,1760058651465,-8539.68,0.00017827,2]
[390479344,1760058651474,-8539.68,0.00017827,2]
[390479345,1760058651483,-8539.8129074,0.00017827,2]
[390479346,1760058651492,-1500.0,0.00017868,2]
[390479347,1760058651501,-1500.0,0.00017868,2]
[390479348,1760058651510,-1500.0,0.00017868,2]
[390479349,1760058651519,-1500.0,0.00017868,2]
[390479350,1760058651528,-1500.0,0.00017868,2]
[390479351,1760058651537,-1500.0,0.00017868,2]
[390479352,1760058651546,-1504.17968185,0.00017868,2]
[390479353,1760058651555,-1500.0,0.00017868,2]
[390479354,1760058651564,-1500.0,0.00017868,2]
[390479355,1760058651574,-390.37501908,0.000179,2]
[390479356,1760058651583,-420.0,0.00017963,2]
[390479357,1760058651592,-152.99454616,0.00017973,2]
[390479358,1760058651602,-1176.45410288,0.00017982,2]
[390479359,1760058651611,-10302.15815677,0.00018,2]
[390479360,1760058651620,-261.45877633,0.00018,2]
[390479361,1760058651629,-296.17274287,0.00018,2]
[390479362,1760058651638,-197.29710914,0.00018,2]
[390479363,1760058651647,-1042.12727065,0.00018,2]
[390479364,1760058651656,-577.37582327,0.00018,2]
[390479365,1760058651665,-256.84847944,0.00018,2]
[390479366,1760058651675,-180.284543,0.00018,2]
[390479367,1760058651684,-1519.0,0.00018082,2]
[390479368,1760058651693,-500.0,0.00018082,2]
[390479369,1760058651702,-500.0,0.00018082,2]
[390479370,1760058651711,-908.65,0.00018082,2]
[390479371,1760058651720,-539.86,0.00018082,2]
[390479372,1760058651729,-151.0,0.00018082,2]
[390479373,1760058651738,-500.0,0.00018082,2]
[390479374,1760058651747,-151.0,0.00018082,2]
[390479375,1760058651757,-151.0,0.00018082,2]
[390479376,1760058651769,-554.35,0.00018082,2]
[390479377,1760058651779,-151.0,0.00018082,2]
[390479378,1760058651788,-151.0,0.00018082,2]
[390479379,1760058651797,-1127.32,0.00018082,2]
[390479380,1760058651808,-836.06,0.00018082,2]
[390479381,1760058651817,-643.27,0.00018082,2]
[390479382,1760058651827,-500.0,0.00018082,2]
[390479383,1760058651836,-644.56,0.00018082,2]
[390479384,1760058651847,-465.05299477,0.00018082,2]
[390479385,1760058651857,-500.0,0.00018082,2]
[390479386,1760058651866,-174.78585856,0.00018082,2]
[390479388,1760058651876,-153.126353,0.00018082,2]
[390479390,1760058651885,-500.0,0.00018082,2]
[390479392,1760058651894,-151.0,0.00018082,2]
[390479394,1760058651903,-500.0,0.00018082,2]
[390479396,1760058651912,-727.24,0.00018082,2]
[390479398,1760058651922,-2335.45,0.00018082,2]
[390479399,1760058651931,-617.81,0.00018082,2]
[390479401,1760058651940,-500.0,0.00018082,2]
[390479403,1760058651949,-4506.29,0.00018082,2]
[390479405,1760058651958,-3706.89,0.00018082,2]
[390479407,1760058651967,-500.0,0.00018082,2]
[390479409,1760058651977,-1269.01,0.00018082,2]
[390479411,1760058651986,-500.0,0.00018082,2]
[390479413,1760058651995,-151.0,0.00018082,2]
[390479415,1760058652004,-500.0,0.00018082,2]
[390479417,1760058652014,-500.0,0.00018082,2]
[390479419,1760058652023,-500.0,0.00018082,2]
[390479421,1760058652032,-235.937385,0.00018082,2]
[390479423,1760058652041,-684.43,0.00018082,2]
[390479425,1760058652051,-3739.76,0.00018082,2]
[390479426,1760058652059,-1231.2,0.00018082,2]
[390479428,1760058652069,-500.0,0.00018082,2]
[390479430,1760058652078,-627.64,0.00018082,2]
[390479432,1760058652087,-3272.57,0.00018082,2]
[390479434,1760058652096,-500.0,0.00018082,2]
[390479436,1760058652105,-500.0,0.00018082,2]
[390479438,1760058652114,-3185.5,0.00018082,2]
[390479440,1760058652123,-1796.42,0.00018082,2]
[390479442,1760058652133,-830.41,0.00018082,2]
[390479444,1760058652143,-500.0,0.00018082,2]
[390479446,1760058652155,-500.0,0.00018082,2]
[390479448,1760058652164,-500.0,0.00018082,2]
[390479450,1760058652173,-1137.25,0.00018082,2]
[390479452,1760058652181,-500.0,0.00018082,2]
[390479454,1760058652190,-1349.39,0.00018082,2]
[390479456,1760058652199,-736.88,0.00018082,2]
[390479458,1760058652208,-1086.11,0.00018082,2]
[390479460,1760058652217,-500.0,0.00018082,2]
[390479462,1760058652226,-151.0,0.00018082,2]
[390479464,1760058652234,-510.3,0.00018082,2]
[390479466,1760058652243,-500.0,0.00018082,2]
[390479468,1760058652252,-527.19,0.00018082,2]
[390479470,1760058652261,-556.67,0.00018082,2]
[390479471,1760058652270,-500.0,0.00018082,2]
[390479473,1760058652279,-500.0,0.00018082,2]
[390479475,1760058652288,-500.0,0.00018082,2]
[390479477,1760058652297,-1323.81,0.00018082,2]
[390479479,1760058652306,-500.0,0.00018082,2]
[390479481,1760058652316,-500.0,0.00018082,2]
[390479483,1760058652325,-2160.82,0.00018082,2]
[390479485,1760058652334,-705.15,0.00018082,2]
[390479486,1760058652342,-500.0,0.00018082,2]
[390479487,1760058652351,-572.44,0.00018082,2]
[390479488,1760058652361,-1221.7,0.00018082,2]
[390479489,1760058652370,-151.0,0.00018082,2]
[390479490,1760058652379,-500.0,0.00018082,2]
[390479491,1760058652388,-500.0,0.00018082,2]
[390479492,1760058652397,-151.0,0.00018082,2]
[390479493,1760058652406,-1191.61,0.00018082,2]
[390479494,1760058652415,-500.0,0.00018082,2]
[390479495,1760058652424,-151.0,0.00018082,2]
[390479496,1760058652433,-500.0,0.00018082,2]
[390479497,1760058652443,-500.0,0.00018082,2]
[390479498,1760058652452,-2350.97,0.00018082,2]
[390479499,1760058652461,-390.37501908,0.000181,2]
[390479500,1760058652470,-500.0,0.00018108,2]
[390479501,1760058652480,-500.0,0.00018108,2]
[390479502,1760058652488,-500.0,0.00018108,2]
[390479503,1760058652497,-1000.0,0.00018108,2]
[390479504,1760058652507,-1000.0,0.00018108,2]
[390479505,1760058652516,-543.07330456,0.00018136,2]
[390479506,1760058652525,-626.82541977,0.00018178,2]
[390479507,1760058652534,-500.0,0.00018178,2]
[390479508,1760058652543,-501.03686346,0.00018178,2]
[390479509,1760058652551,-498.07791259,0.00018178,2]
[390479510,1760058652561,-500.0,0.00018178,2]
[390479511,1760058652570,-500.0,0.00018178,2]
[390479512,1760058652578,-500.0,0.00018178,2]
[390479513,1760058652588,-500.0,0.00018178,2]
[390479514,1760058652597,-500.0,0.00018178,2]
[390479515,1760058652605,-500.0,0.00018178,2]
[390479516,1760058652614,-500.0,0.00018178,2]
[390479517,1760058652623,-173.0,0.00018192,3]
[390479518,1760058652632,-10302.15815677,0.000182,2]
[390479519,1760058652641,-197.29710914,0.000182,2]
[390479521,1760058652650,-1042.12727065,0.000182,2]
[390479523,1760058652659,-577.37582327,0.000182,2]
[390479525,1760058652668,-256.84847944,0.000182,2]
[390479527,1760058652677,-151.0,0.000182,2]
[390479528,1760058652686,-192.154342,0.000182,2]
[390479530,1760058652696,-192.154342,0.000182,2]
[390479532,1760058652705,-192.154342,0.000182,2]
[390479534,1760058652714,-192.154342,0.000182,2]
[390479536,1760058652724,-210.450322,0.000182,2]
[390479538,1760058652732,-210.450322,0.000182,2]
[390479540,1760058652742,-210.450322,0.000182,2]
[390479542,1760058652751,-210.450322,0.000182,2]
[390479544,1760058652760,-391.7808599,0.00018224,2]
[390479546,1760058652772,-391.7808599,0.00018224,2]
[390479548,1760058652781,-391.7808599,0.00018224,2]